{"text_format":"3","workbook":"xlsx","n_sheets":3,"sheets":["Galimų klientų duomenys","Pardavimo prognozė ","Mėnesio svertinė prognozė"],"not_rendered":{"charts":1,"defined_names":10},"read":"whole","date_system":"1900"}

{"sheet":"Galimų klientų duomenys","index":0,"n_rows":9,"n_cols":10,"rows_kept":9}
[null,"Įmonės pavadinimas"]
[null,"Išsami galimų klientų sekimo priemonė"]
[null,{"$f":"TODAY()","v":"2022-04-08"}]
[{"$nulls":8},{"$f":"Įmonės_pavadinimas","v":"Įmonės pavadinimas"},"KONFIDENCIALI INFORMACIJA"]
[null,"Galimo kliento vardas","Galimo kliento kontaktiniai duomenys","Galimo kliento \nšaltinis","Galimo kliento \nregionas","Galimo kliento \ntipas","Potenciali galimybė","Pardavimo \ntikimybė","Prognozės \npabaiga","Svertinė \nprognozė"]
[null,"A. Datum Corporation",{"$nulls":3},"Strateginis",{"v":300000,"d":"300,000.00 EUR"},{"v":0.9,"d":"90%"},"Sausis",{"$f":"IFERROR(IF(GalimųKlientųDuomenys[[#This Row],[Pardavimo \ntikimybė]]<>\"\",GalimųKlientųDuomenys[[#This Row],[Pardavimo \ntikimybė]]*GalimųKlientųDuomenys[[#This Row],[Potenciali galimybė]],\"\"),\"\")","v":{"v":270000,"d":"270,000.00 EUR"}}]
[null,"Adventure Works",{"$nulls":3},"Strateginis",{"v":200000,"d":"200,000.00 EUR"},{"v":0.1,"d":"10%"},"Vasaris",{"$f":"IFERROR(IF(GalimųKlientųDuomenys[[#This Row],[Pardavimo \ntikimybė]]<>\"\",GalimųKlientųDuomenys[[#This Row],[Pardavimo \ntikimybė]]*GalimųKlientųDuomenys[[#This Row],[Potenciali galimybė]],\"\"),\"\")","v":{"v":20000,"d":"20,000.00 EUR"}}]
[null,"Alpine Ski House",{"$nulls":3},"Taktinis",{"v":100000,"d":"100,000.00 EUR"},{"v":0.2,"d":"20%"},"Kovas",{"$f":"IFERROR(IF(GalimųKlientųDuomenys[[#This Row],[Pardavimo \ntikimybė]]<>\"\",GalimųKlientųDuomenys[[#This Row],[Pardavimo \ntikimybė]]*GalimųKlientųDuomenys[[#This Row],[Potenciali galimybė]],\"\"),\"\")","v":{"v":20000,"d":"20,000.00 EUR"}}]
[null,"Suma",{"$nulls":4},{"$f":"SUBTOTAL(109,GalimųKlientųDuomenys[Potenciali galimybė])","v":{"v":600000,"d":"600,000.00 EUR"}},null,null,{"$f":"SUBTOTAL(109,GalimųKlientųDuomenys[Svertinė \nprognozė])","v":{"v":310000,"d":"310,000.00 EUR"}}]

{"sheet":"Pardavimo prognozė ","index":1,"n_rows":21,"n_cols":14,"rows_kept":21,"merged":[[3,12,3,13]]}
[null,{"$f":"Įmonės_pavadinimas","v":"Įmonės pavadinimas"}]
[null,"Pardavimo prognozė"]
[null,{"$f":"SekimoPriemonėsData","v":"2022-04-08"}]
[{"$nulls":11},{"$f":"Įmonės_pavadinimas","v":"Įmonės pavadinimas"},"KONFIDENCIALI INFORMACIJA"]
[null,"Galimo kliento vardas","Sausio \nprognozė","Vasario \nprognozė","Kovo \nprognozė","Balandžio \nprognozė","Gegužės \nprognozė","Birželio \nprognozė","Liepos \nprognozė","Rugpjūčio \nprognozė","Rugsėjo \nprognozė","Spalio \nprognozė","Lapkričio \nprognozė","Gruodžio \nprognozė"]
[null,{"$f":"IFERROR(IF(AND(GalimųKlientųDuomenys[[#This Row],[Galimo kliento vardas]] <> \"\", ROW(PardavimoPrognozė[Galimo kliento vardas])<>PaskutinisĮrašas),GalimųKlientųDuomenys[Galimo kliento vardas], \"\"),\"\")","v":"A. Datum Corporation"},{"$f":"IFERROR(IF(GalimųKlientųDuomenys[[#This Row],[Prognozės \npabaiga]] <>\"\",IF(GalimųKlientųDuomenys[[#This Row],[Prognozės \npabaiga]]= \"Sausis\",GalimųKlientųDuomenys[Svertinė \nprognozė],0),\"\"),\"\")","v":{"v":270000,"d":"270,000 EUR"}},{"$f":"IFERROR(IF(GalimųKlientųDuomenys[[#This Row],[Prognozės \npabaiga]] <>\"\",IF(GalimųKlientųDuomenys[[#This Row],[Prognozės \npabaiga]] = \"Vasaris\",GalimųKlientųDuomenys[Svertinė \nprognozė],0),\"\"),\"\")","v":{"v":0,"d":"0 EUR"}},{"$f":"IFERROR(IF(GalimųKlientųDuomenys[[#This Row],[Prognozės \npabaiga]] <>\"\",IF(GalimųKlientųDuomenys[[#This Row],[Prognozės \npabaiga]] = \"Kovas\",GalimųKlientųDuomenys[Svertinė \nprognozė],0),\"\"),\"\")","v":{"v":0,"d":"0 EUR"}},{"$f":"IFERROR(IF(GalimųKlientųDuomenys[[#This Row],[Prognozės \npabaiga]] <>\"\",IF(GalimųKlientųDuomenys[[#This Row],[Prognozės \npabaiga]] = \"Balandžio\",GalimųKlientųDuomenys[Svertinė \nprognozė],0),\"\"),\"\")","v":{"v":0,"d":"0 EUR"}},{"$f":"IFERROR(IF(GalimųKlientųDuomenys[[#This Row],[Prognozės \npabaiga]] <>\"\",IF(GalimųKlientųDuomenys[[#This Row],[Prognozės \npabaiga]] = \"Gegužės\",GalimųKlientųDuomenys[Svertinė \nprognozė],0),\"\"),\"\")","v":{"v":0,"d":"0 EUR"}},{"$f":"IFERROR(IF(GalimųKlientųDuomenys[[#This Row],[Prognozės \npabaiga]] <>\"\",IF(GalimųKlientųDuomenys[[#This Row],[Prognozės \npabaiga]] = \"Birželio\",GalimųKlientųDuomenys[Svertinė \nprognozė],0),\"\"),\"\")","v":{"v":0,"d":"0 EUR"}},{"$f":"IFERROR(IF(GalimųKlientųDuomenys[[#This Row],[Prognozės \npabaiga]] <>\"\",IF(GalimųKlientųDuomenys[[#This Row],[Prognozės \npabaiga]] = \"Liepos\",GalimųKlientųDuomenys[Svertinė \nprognozė],0),\"\"),\"\")","v":{"v":0,"d":"0 EUR"}},{"$f":"IFERROR(IF(GalimųKlientųDuomenys[[#This Row],[Prognozės \npabaiga]] <>\"\",IF(GalimųKlientųDuomenys[[#This Row],[Prognozės \npabaiga]] = \"Rugpjūčio\",GalimųKlientųDuomenys[Svertinė \nprognozė],0),\"\"),\"\")","v":{"v":0,"d":"0 EUR"}},{"$f":"IFERROR(IF(GalimųKlientųDuomenys[[#This Row],[Prognozės \npabaiga]] <>\"\",IF(GalimųKlientųDuomenys[[#This Row],[Prognozės \npabaiga]] = \"Rugsėjo\",GalimųKlientųDuomenys[Svertinė \nprognozė],0),\"\"),\"\")","v":{"v":0,"d":"0 EUR"}},{"$f":"IFERROR(IF(GalimųKlientųDuomenys[[#This Row],[Prognozės \npabaiga]] <>\"\",IF(GalimųKlientųDuomenys[[#This Row],[Prognozės \npabaiga]] = \"Spalio\",GalimųKlientųDuomenys[Svertinė \nprognozė],0),\"\"),\"\")","v":{"v":0,"d":"0 EUR"}},{"$f":"IFERROR(IF(GalimųKlientųDuomenys[[#This Row],[Prognozės \npabaiga]] <>\"\",IF(GalimųKlientųDuomenys[[#This Row],[Prognozės \npabaiga]] = \"Lapkričio\",GalimųKlientųDuomenys[Svertinė \nprognozė],0),\"\"),\"\")","v":{"v":0,"d":"0 EUR"}},{"$f":"IFERROR(IF(GalimųKlientųDuomenys[[#This Row],[Prognozės \npabaiga]] <>\"\",IF(GalimųKlientųDuomenys[[#This Row],[Prognozės \npabaiga]] = \"Gruodžio\",GalimųKlientųDuomenys[Svertinė \nprognozė],0),\"\"),\"\")","v":{"v":0,"d":"0 EUR"}}]
[null,{"$f":"IFERROR(IF(AND(GalimųKlientųDuomenys[[#This Row],[Galimo kliento vardas]] <> \"\", ROW(PardavimoPrognozė[Galimo kliento vardas])<>PaskutinisĮrašas),GalimųKlientųDuomenys[Galimo kliento vardas], \"\"),\"\")","v":"Adventure Works"},{"$f":"IFERROR(IF(GalimųKlientųDuomenys[[#This Row],[Prognozės \npabaiga]] <>\"\",IF(GalimųKlientųDuomenys[[#This Row],[Prognozės \npabaiga]]= \"Sausis\",GalimųKlientųDuomenys[Svertinė \nprognozė],0),\"\"),\"\")","v":{"v":0,"d":"0 EUR"}},{"$f":"IFERROR(IF(GalimųKlientųDuomenys[[#This Row],[Prognozės \npabaiga]] <>\"\",IF(GalimųKlientųDuomenys[[#This Row],[Prognozės \npabaiga]] = \"Vasaris\",GalimųKlientųDuomenys[Svertinė \nprognozė],0),\"\"),\"\")","v":{"v":20000,"d":"20,000 EUR"}},{"$f":"IFERROR(IF(GalimųKlientųDuomenys[[#This Row],[Prognozės \npabaiga]] <>\"\",IF(GalimųKlientųDuomenys[[#This Row],[Prognozės \npabaiga]] = \"Kovas\",GalimųKlientųDuomenys[Svertinė \nprognozė],0),\"\"),\"\")","v":{"v":0,"d":"0 EUR"}},{"$f":"IFERROR(IF(GalimųKlientųDuomenys[[#This Row],[Prognozės \npabaiga]] <>\"\",IF(GalimųKlientųDuomenys[[#This Row],[Prognozės \npabaiga]] = \"Balandžio\",GalimųKlientųDuomenys[Svertinė \nprognozė],0),\"\"),\"\")","v":{"v":0,"d":"0 EUR"}},{"$f":"IFERROR(IF(GalimųKlientųDuomenys[[#This Row],[Prognozės \npabaiga]] <>\"\",IF(GalimųKlientųDuomenys[[#This Row],[Prognozės \npabaiga]] = \"Gegužės\",GalimųKlientųDuomenys[Svertinė \nprognozė],0),\"\"),\"\")","v":{"v":0,"d":"0 EUR"}},{"$f":"IFERROR(IF(GalimųKlientųDuomenys[[#This Row],[Prognozės \npabaiga]] <>\"\",IF(GalimųKlientųDuomenys[[#This Row],[Prognozės \npabaiga]] = \"Birželio\",GalimųKlientųDuomenys[Svertinė \nprognozė],0),\"\"),\"\")","v":{"v":0,"d":"0 EUR"}},{"$f":"IFERROR(IF(GalimųKlientųDuomenys[[#This Row],[Prognozės \npabaiga]] <>\"\",IF(GalimųKlientųDuomenys[[#This Row],[Prognozės \npabaiga]] = \"Liepos\",GalimųKlientųDuomenys[Svertinė \nprognozė],0),\"\"),\"\")","v":{"v":0,"d":"0 EUR"}},{"$f":"IFERROR(IF(GalimųKlientųDuomenys[[#This Row],[Prognozės \npabaiga]] <>\"\",IF(GalimųKlientųDuomenys[[#This Row],[Prognozės \npabaiga]] = \"Rugpjūčio\",GalimųKlientųDuomenys[Svertinė \nprognozė],0),\"\"),\"\")","v":{"v":0,"d":"0 EUR"}},{"$f":"IFERROR(IF(GalimųKlientųDuomenys[[#This Row],[Prognozės \npabaiga]] <>\"\",IF(GalimųKlientųDuomenys[[#This Row],[Prognozės \npabaiga]] = \"Rugsėjo\",GalimųKlientųDuomenys[Svertinė \nprognozė],0),\"\"),\"\")","v":{"v":0,"d":"0 EUR"}},{"$f":"IFERROR(IF(GalimųKlientųDuomenys[[#This Row],[Prognozės \npabaiga]] <>\"\",IF(GalimųKlientųDuomenys[[#This Row],[Prognozės \npabaiga]] = \"Spalio\",GalimųKlientųDuomenys[Svertinė \nprognozė],0),\"\"),\"\")","v":{"v":0,"d":"0 EUR"}},{"$f":"IFERROR(IF(GalimųKlientųDuomenys[[#This Row],[Prognozės \npabaiga]] <>\"\",IF(GalimųKlientųDuomenys[[#This Row],[Prognozės \npabaiga]] = \"Lapkričio\",GalimųKlientųDuomenys[Svertinė \nprognozė],0),\"\"),\"\")","v":{"v":0,"d":"0 EUR"}},{"$f":"IFERROR(IF(GalimųKlientųDuomenys[[#This Row],[Prognozės \npabaiga]] <>\"\",IF(GalimųKlientųDuomenys[[#This Row],[Prognozės \npabaiga]] = \"Gruodžio\",GalimųKlientųDuomenys[Svertinė \nprognozė],0),\"\"),\"\")","v":{"v":0,"d":"0 EUR"}}]
[null,{"$f":"IFERROR(IF(AND(GalimųKlientųDuomenys[[#This Row],[Galimo kliento vardas]] <> \"\", ROW(PardavimoPrognozė[Galimo kliento vardas])<>PaskutinisĮrašas),GalimųKlientųDuomenys[Galimo kliento vardas], \"\"),\"\")","v":"Alpine Ski House"},{"$f":"IFERROR(IF(GalimųKlientųDuomenys[[#This Row],[Prognozės \npabaiga]] <>\"\",IF(GalimųKlientųDuomenys[[#This Row],[Prognozės \npabaiga]]= \"Sausis\",GalimųKlientųDuomenys[Svertinė \nprognozė],0),\"\"),\"\")","v":{"v":0,"d":"0 EUR"}},{"$f":"IFERROR(IF(GalimųKlientųDuomenys[[#This Row],[Prognozės \npabaiga]] <>\"\",IF(GalimųKlientųDuomenys[[#This Row],[Prognozės \npabaiga]] = \"Vasaris\",GalimųKlientųDuomenys[Svertinė \nprognozė],0),\"\"),\"\")","v":{"v":0,"d":"0 EUR"}},{"$f":"IFERROR(IF(GalimųKlientųDuomenys[[#This Row],[Prognozės \npabaiga]] <>\"\",IF(GalimųKlientųDuomenys[[#This Row],[Prognozės \npabaiga]] = \"Kovas\",GalimųKlientųDuomenys[Svertinė \nprognozė],0),\"\"),\"\")","v":{"v":20000,"d":"20,000 EUR"}},{"$f":"IFERROR(IF(GalimųKlientųDuomenys[[#This Row],[Prognozės \npabaiga]] <>\"\",IF(GalimųKlientųDuomenys[[#This Row],[Prognozės \npabaiga]] = \"Balandžio\",GalimųKlientųDuomenys[Svertinė \nprognozė],0),\"\"),\"\")","v":{"v":0,"d":"0 EUR"}},{"$f":"IFERROR(IF(GalimųKlientųDuomenys[[#This Row],[Prognozės \npabaiga]] <>\"\",IF(GalimųKlientųDuomenys[[#This Row],[Prognozės \npabaiga]] = \"Gegužės\",GalimųKlientųDuomenys[Svertinė \nprognozė],0),\"\"),\"\")","v":{"v":0,"d":"0 EUR"}},{"$f":"IFERROR(IF(GalimųKlientųDuomenys[[#This Row],[Prognozės \npabaiga]] <>\"\",IF(GalimųKlientųDuomenys[[#This Row],[Prognozės \npabaiga]] = \"Birželio\",GalimųKlientųDuomenys[Svertinė \nprognozė],0),\"\"),\"\")","v":{"v":0,"d":"0 EUR"}},{"$f":"IFERROR(IF(GalimųKlientųDuomenys[[#This Row],[Prognozės \npabaiga]] <>\"\",IF(GalimųKlientųDuomenys[[#This Row],[Prognozės \npabaiga]] = \"Liepos\",GalimųKlientųDuomenys[Svertinė \nprognozė],0),\"\"),\"\")","v":{"v":0,"d":"0 EUR"}},{"$f":"IFERROR(IF(GalimųKlientųDuomenys[[#This Row],[Prognozės \npabaiga]] <>\"\",IF(GalimųKlientųDuomenys[[#This Row],[Prognozės \npabaiga]] = \"Rugpjūčio\",GalimųKlientųDuomenys[Svertinė \nprognozė],0),\"\"),\"\")","v":{"v":0,"d":"0 EUR"}},{"$f":"IFERROR(IF(GalimųKlientųDuomenys[[#This Row],[Prognozės \npabaiga]] <>\"\",IF(GalimųKlientųDuomenys[[#This Row],[Prognozės \npabaiga]] = \"Rugsėjo\",GalimųKlientųDuomenys[Svertinė \nprognozė],0),\"\"),\"\")","v":{"v":0,"d":"0 EUR"}},{"$f":"IFERROR(IF(GalimųKlientųDuomenys[[#This Row],[Prognozės \npabaiga]] <>\"\",IF(GalimųKlientųDuomenys[[#This Row],[Prognozės \npabaiga]] = \"Spalio\",GalimųKlientųDuomenys[Svertinė \nprognozė],0),\"\"),\"\")","v":{"v":0,"d":"0 EUR"}},{"$f":"IFERROR(IF(GalimųKlientųDuomenys[[#This Row],[Prognozės \npabaiga]] <>\"\",IF(GalimųKlientųDuomenys[[#This Row],[Prognozės \npabaiga]] = \"Lapkričio\",GalimųKlientųDuomenys[Svertinė \nprognozė],0),\"\"),\"\")","v":{"v":0,"d":"0 EUR"}},{"$f":"IFERROR(IF(GalimųKlientųDuomenys[[#This Row],[Prognozės \npabaiga]] <>\"\",IF(GalimųKlientųDuomenys[[#This Row],[Prognozės \npabaiga]] = \"Gruodžio\",GalimųKlientųDuomenys[Svertinė \nprognozė],0),\"\"),\"\")","v":{"v":0,"d":"0 EUR"}}]
[null,{"$f":"IFERROR(IF(AND(GalimųKlientųDuomenys[[#This Row],[Galimo kliento vardas]] <> \"\", ROW(PardavimoPrognozė[Galimo kliento vardas])<>PaskutinisĮrašas),GalimųKlientųDuomenys[Galimo kliento vardas], \"\"),\"\")","v":""},{"$f":"IFERROR(IF(GalimųKlientųDuomenys[[#This Row],[Prognozės \npabaiga]] <>\"\",IF(GalimųKlientųDuomenys[[#This Row],[Prognozės \npabaiga]]= \"Sausis\",GalimųKlientųDuomenys[Svertinė \nprognozė],0),\"\"),\"\")","v":""},{"$f":"IFERROR(IF(GalimųKlientųDuomenys[[#This Row],[Prognozės \npabaiga]] <>\"\",IF(GalimųKlientųDuomenys[[#This Row],[Prognozės \npabaiga]] = \"Vasaris\",GalimųKlientųDuomenys[Svertinė \nprognozė],0),\"\"),\"\")","v":""},{"$f":"IFERROR(IF(GalimųKlientųDuomenys[[#This Row],[Prognozės \npabaiga]] <>\"\",IF(GalimųKlientųDuomenys[[#This Row],[Prognozės \npabaiga]] = \"Kovas\",GalimųKlientųDuomenys[Svertinė \nprognozė],0),\"\"),\"\")","v":""},{"$f":"IFERROR(IF(GalimųKlientųDuomenys[[#This Row],[Prognozės \npabaiga]] <>\"\",IF(GalimųKlientųDuomenys[[#This Row],[Prognozės \npabaiga]] = \"Balandžio\",GalimųKlientųDuomenys[Svertinė \nprognozė],0),\"\"),\"\")","v":""},{"$f":"IFERROR(IF(GalimųKlientųDuomenys[[#This Row],[Prognozės \npabaiga]] <>\"\",IF(GalimųKlientųDuomenys[[#This Row],[Prognozės \npabaiga]] = \"Gegužės\",GalimųKlientųDuomenys[Svertinė \nprognozė],0),\"\"),\"\")","v":""},{"$f":"IFERROR(IF(GalimųKlientųDuomenys[[#This Row],[Prognozės \npabaiga]] <>\"\",IF(GalimųKlientųDuomenys[[#This Row],[Prognozės \npabaiga]] = \"Birželio\",GalimųKlientųDuomenys[Svertinė \nprognozė],0),\"\"),\"\")","v":""},{"$f":"IFERROR(IF(GalimųKlientųDuomenys[[#This Row],[Prognozės \npabaiga]] <>\"\",IF(GalimųKlientųDuomenys[[#This Row],[Prognozės \npabaiga]] = \"Liepos\",GalimųKlientųDuomenys[Svertinė \nprognozė],0),\"\"),\"\")","v":""},{"$f":"IFERROR(IF(GalimųKlientųDuomenys[[#This Row],[Prognozės \npabaiga]] <>\"\",IF(GalimųKlientųDuomenys[[#This Row],[Prognozės \npabaiga]] = \"Rugpjūčio\",GalimųKlientųDuomenys[Svertinė \nprognozė],0),\"\"),\"\")","v":""},{"$f":"IFERROR(IF(GalimųKlientųDuomenys[[#This Row],[Prognozės \npabaiga]] <>\"\",IF(GalimųKlientųDuomenys[[#This Row],[Prognozės \npabaiga]] = \"Rugsėjo\",GalimųKlientųDuomenys[Svertinė \nprognozė],0),\"\"),\"\")","v":""},{"$f":"IFERROR(IF(GalimųKlientųDuomenys[[#This Row],[Prognozės \npabaiga]] <>\"\",IF(GalimųKlientųDuomenys[[#This Row],[Prognozės \npabaiga]] = \"Spalio\",GalimųKlientųDuomenys[Svertinė \nprognozė],0),\"\"),\"\")","v":""},{"$f":"IFERROR(IF(GalimųKlientųDuomenys[[#This Row],[Prognozės \npabaiga]] <>\"\",IF(GalimųKlientųDuomenys[[#This Row],[Prognozės \npabaiga]] = \"Lapkričio\",GalimųKlientųDuomenys[Svertinė \nprognozė],0),\"\"),\"\")","v":""},{"$f":"IFERROR(IF(GalimųKlientųDuomenys[[#This Row],[Prognozės \npabaiga]] <>\"\",IF(GalimųKlientųDuomenys[[#This Row],[Prognozės \npabaiga]] = \"Gruodžio\",GalimųKlientųDuomenys[Svertinė \nprognozė],0),\"\"),\"\")","v":""}]
[null,{"$f":"IFERROR(IF(AND(GalimųKlientųDuomenys[[#This Row],[Galimo kliento vardas]] <> \"\", ROW(PardavimoPrognozė[Galimo kliento vardas])<>PaskutinisĮrašas),GalimųKlientųDuomenys[Galimo kliento vardas], \"\"),\"\")","v":""},{"$f":"IFERROR(IF(GalimųKlientųDuomenys[[#This Row],[Prognozės \npabaiga]] <>\"\",IF(GalimųKlientųDuomenys[[#This Row],[Prognozės \npabaiga]]= \"Sausis\",GalimųKlientųDuomenys[Svertinė \nprognozė],0),\"\"),\"\")","v":""},{"$f":"IFERROR(IF(GalimųKlientųDuomenys[[#This Row],[Prognozės \npabaiga]] <>\"\",IF(GalimųKlientųDuomenys[[#This Row],[Prognozės \npabaiga]] = \"Vasaris\",GalimųKlientųDuomenys[Svertinė \nprognozė],0),\"\"),\"\")","v":""},{"$f":"IFERROR(IF(GalimųKlientųDuomenys[[#This Row],[Prognozės \npabaiga]] <>\"\",IF(GalimųKlientųDuomenys[[#This Row],[Prognozės \npabaiga]] = \"Kovas\",GalimųKlientųDuomenys[Svertinė \nprognozė],0),\"\"),\"\")","v":""},{"$f":"IFERROR(IF(GalimųKlientųDuomenys[[#This Row],[Prognozės \npabaiga]] <>\"\",IF(GalimųKlientųDuomenys[[#This Row],[Prognozės \npabaiga]] = \"Balandžio\",GalimųKlientųDuomenys[Svertinė \nprognozė],0),\"\"),\"\")","v":""},{"$f":"IFERROR(IF(GalimųKlientųDuomenys[[#This Row],[Prognozės \npabaiga]] <>\"\",IF(GalimųKlientųDuomenys[[#This Row],[Prognozės \npabaiga]] = \"Gegužės\",GalimųKlientųDuomenys[Svertinė \nprognozė],0),\"\"),\"\")","v":""},{"$f":"IFERROR(IF(GalimųKlientųDuomenys[[#This Row],[Prognozės \npabaiga]] <>\"\",IF(GalimųKlientųDuomenys[[#This Row],[Prognozės \npabaiga]] = \"Birželio\",GalimųKlientųDuomenys[Svertinė \nprognozė],0),\"\"),\"\")","v":""},{"$f":"IFERROR(IF(GalimųKlientųDuomenys[[#This Row],[Prognozės \npabaiga]] <>\"\",IF(GalimųKlientųDuomenys[[#This Row],[Prognozės \npabaiga]] = \"Liepos\",GalimųKlientųDuomenys[Svertinė \nprognozė],0),\"\"),\"\")","v":""},{"$f":"IFERROR(IF(GalimųKlientųDuomenys[[#This Row],[Prognozės \npabaiga]] <>\"\",IF(GalimųKlientųDuomenys[[#This Row],[Prognozės \npabaiga]] = \"Rugpjūčio\",GalimųKlientųDuomenys[Svertinė \nprognozė],0),\"\"),\"\")","v":""},{"$f":"IFERROR(IF(GalimųKlientųDuomenys[[#This Row],[Prognozės \npabaiga]] <>\"\",IF(GalimųKlientųDuomenys[[#This Row],[Prognozės \npabaiga]] = \"Rugsėjo\",GalimųKlientųDuomenys[Svertinė \nprognozė],0),\"\"),\"\")","v":""},{"$f":"IFERROR(IF(GalimųKlientųDuomenys[[#This Row],[Prognozės \npabaiga]] <>\"\",IF(GalimųKlientųDuomenys[[#This Row],[Prognozės \npabaiga]] = \"Spalio\",GalimųKlientųDuomenys[Svertinė \nprognozė],0),\"\"),\"\")","v":""},{"$f":"IFERROR(IF(GalimųKlientųDuomenys[[#This Row],[Prognozės \npabaiga]] <>\"\",IF(GalimųKlientųDuomenys[[#This Row],[Prognozės \npabaiga]] = \"Lapkričio\",GalimųKlientųDuomenys[Svertinė \nprognozė],0),\"\"),\"\")","v":""},{"$f":"IFERROR(IF(GalimųKlientųDuomenys[[#This Row],[Prognozės \npabaiga]] <>\"\",IF(GalimųKlientųDuomenys[[#This Row],[Prognozės \npabaiga]] = \"Gruodžio\",GalimųKlientųDuomenys[Svertinė \nprognozė],0),\"\"),\"\")","v":""}]
[null,{"$f":"IFERROR(IF(AND(GalimųKlientųDuomenys[[#This Row],[Galimo kliento vardas]] <> \"\", ROW(PardavimoPrognozė[Galimo kliento vardas])<>PaskutinisĮrašas),GalimųKlientųDuomenys[Galimo kliento vardas], \"\"),\"\")","v":""},{"$f":"IFERROR(IF(GalimųKlientųDuomenys[[#This Row],[Prognozės \npabaiga]] <>\"\",IF(GalimųKlientųDuomenys[[#This Row],[Prognozės \npabaiga]]= \"Sausis\",GalimųKlientųDuomenys[Svertinė \nprognozė],0),\"\"),\"\")","v":""},{"$f":"IFERROR(IF(GalimųKlientųDuomenys[[#This Row],[Prognozės \npabaiga]] <>\"\",IF(GalimųKlientųDuomenys[[#This Row],[Prognozės \npabaiga]] = \"Vasaris\",GalimųKlientųDuomenys[Svertinė \nprognozė],0),\"\"),\"\")","v":""},{"$f":"IFERROR(IF(GalimųKlientųDuomenys[[#This Row],[Prognozės \npabaiga]] <>\"\",IF(GalimųKlientųDuomenys[[#This Row],[Prognozės \npabaiga]] = \"Kovas\",GalimųKlientųDuomenys[Svertinė \nprognozė],0),\"\"),\"\")","v":""},{"$f":"IFERROR(IF(GalimųKlientųDuomenys[[#This Row],[Prognozės \npabaiga]] <>\"\",IF(GalimųKlientųDuomenys[[#This Row],[Prognozės \npabaiga]] = \"Balandžio\",GalimųKlientųDuomenys[Svertinė \nprognozė],0),\"\"),\"\")","v":""},{"$f":"IFERROR(IF(GalimųKlientųDuomenys[[#This Row],[Prognozės \npabaiga]] <>\"\",IF(GalimųKlientųDuomenys[[#This Row],[Prognozės \npabaiga]] = \"Gegužės\",GalimųKlientųDuomenys[Svertinė \nprognozė],0),\"\"),\"\")","v":""},{"$f":"IFERROR(IF(GalimųKlientųDuomenys[[#This Row],[Prognozės \npabaiga]] <>\"\",IF(GalimųKlientųDuomenys[[#This Row],[Prognozės \npabaiga]] = \"Birželio\",GalimųKlientųDuomenys[Svertinė \nprognozė],0),\"\"),\"\")","v":""},{"$f":"IFERROR(IF(GalimųKlientųDuomenys[[#This Row],[Prognozės \npabaiga]] <>\"\",IF(GalimųKlientųDuomenys[[#This Row],[Prognozės \npabaiga]] = \"Liepos\",GalimųKlientųDuomenys[Svertinė \nprognozė],0),\"\"),\"\")","v":""},{"$f":"IFERROR(IF(GalimųKlientųDuomenys[[#This Row],[Prognozės \npabaiga]] <>\"\",IF(GalimųKlientųDuomenys[[#This Row],[Prognozės \npabaiga]] = \"Rugpjūčio\",GalimųKlientųDuomenys[Svertinė \nprognozė],0),\"\"),\"\")","v":""},{"$f":"IFERROR(IF(GalimųKlientųDuomenys[[#This Row],[Prognozės \npabaiga]] <>\"\",IF(GalimųKlientųDuomenys[[#This Row],[Prognozės \npabaiga]] = \"Rugsėjo\",GalimųKlientųDuomenys[Svertinė \nprognozė],0),\"\"),\"\")","v":""},{"$f":"IFERROR(IF(GalimųKlientųDuomenys[[#This Row],[Prognozės \npabaiga]] <>\"\",IF(GalimųKlientųDuomenys[[#This Row],[Prognozės \npabaiga]] = \"Spalio\",GalimųKlientųDuomenys[Svertinė \nprognozė],0),\"\"),\"\")","v":""},{"$f":"IFERROR(IF(GalimųKlientųDuomenys[[#This Row],[Prognozės \npabaiga]] <>\"\",IF(GalimųKlientųDuomenys[[#This Row],[Prognozės \npabaiga]] = \"Lapkričio\",GalimųKlientųDuomenys[Svertinė \nprognozė],0),\"\"),\"\")","v":""},{"$f":"IFERROR(IF(GalimųKlientųDuomenys[[#This Row],[Prognozės \npabaiga]] <>\"\",IF(GalimųKlientųDuomenys[[#This Row],[Prognozės \npabaiga]] = \"Gruodžio\",GalimųKlientųDuomenys[Svertinė \nprognozė],0),\"\"),\"\")","v":""}]
[null,{"$f":"IFERROR(IF(AND(GalimųKlientųDuomenys[[#This Row],[Galimo kliento vardas]] <> \"\", ROW(PardavimoPrognozė[Galimo kliento vardas])<>PaskutinisĮrašas),GalimųKlientųDuomenys[Galimo kliento vardas], \"\"),\"\")","v":""},{"$f":"IFERROR(IF(GalimųKlientųDuomenys[[#This Row],[Prognozės \npabaiga]] <>\"\",IF(GalimųKlientųDuomenys[[#This Row],[Prognozės \npabaiga]]= \"Sausis\",GalimųKlientųDuomenys[Svertinė \nprognozė],0),\"\"),\"\")","v":""},{"$f":"IFERROR(IF(GalimųKlientųDuomenys[[#This Row],[Prognozės \npabaiga]] <>\"\",IF(GalimųKlientųDuomenys[[#This Row],[Prognozės \npabaiga]] = \"Vasaris\",GalimųKlientųDuomenys[Svertinė \nprognozė],0),\"\"),\"\")","v":""},{"$f":"IFERROR(IF(GalimųKlientųDuomenys[[#This Row],[Prognozės \npabaiga]] <>\"\",IF(GalimųKlientųDuomenys[[#This Row],[Prognozės \npabaiga]] = \"Kovas\",GalimųKlientųDuomenys[Svertinė \nprognozė],0),\"\"),\"\")","v":""},{"$f":"IFERROR(IF(GalimųKlientųDuomenys[[#This Row],[Prognozės \npabaiga]] <>\"\",IF(GalimųKlientųDuomenys[[#This Row],[Prognozės \npabaiga]] = \"Balandžio\",GalimųKlientųDuomenys[Svertinė \nprognozė],0),\"\"),\"\")","v":""},{"$f":"IFERROR(IF(GalimųKlientųDuomenys[[#This Row],[Prognozės \npabaiga]] <>\"\",IF(GalimųKlientųDuomenys[[#This Row],[Prognozės \npabaiga]] = \"Gegužės\",GalimųKlientųDuomenys[Svertinė \nprognozė],0),\"\"),\"\")","v":""},{"$f":"IFERROR(IF(GalimųKlientųDuomenys[[#This Row],[Prognozės \npabaiga]] <>\"\",IF(GalimųKlientųDuomenys[[#This Row],[Prognozės \npabaiga]] = \"Birželio\",GalimųKlientųDuomenys[Svertinė \nprognozė],0),\"\"),\"\")","v":""},{"$f":"IFERROR(IF(GalimųKlientųDuomenys[[#This Row],[Prognozės \npabaiga]] <>\"\",IF(GalimųKlientųDuomenys[[#This Row],[Prognozės \npabaiga]] = \"Liepos\",GalimųKlientųDuomenys[Svertinė \nprognozė],0),\"\"),\"\")","v":""},{"$f":"IFERROR(IF(GalimųKlientųDuomenys[[#This Row],[Prognozės \npabaiga]] <>\"\",IF(GalimųKlientųDuomenys[[#This Row],[Prognozės \npabaiga]] = \"Rugpjūčio\",GalimųKlientųDuomenys[Svertinė \nprognozė],0),\"\"),\"\")","v":""},{"$f":"IFERROR(IF(GalimųKlientųDuomenys[[#This Row],[Prognozės \npabaiga]] <>\"\",IF(GalimųKlientųDuomenys[[#This Row],[Prognozės \npabaiga]] = \"Rugsėjo\",GalimųKlientųDuomenys[Svertinė \nprognozė],0),\"\"),\"\")","v":""},{"$f":"IFERROR(IF(GalimųKlientųDuomenys[[#This Row],[Prognozės \npabaiga]] <>\"\",IF(GalimųKlientųDuomenys[[#This Row],[Prognozės \npabaiga]] = \"Spalio\",GalimųKlientųDuomenys[Svertinė \nprognozė],0),\"\"),\"\")","v":""},{"$f":"IFERROR(IF(GalimųKlientųDuomenys[[#This Row],[Prognozės \npabaiga]] <>\"\",IF(GalimųKlientųDuomenys[[#This Row],[Prognozės \npabaiga]] = \"Lapkričio\",GalimųKlientųDuomenys[Svertinė \nprognozė],0),\"\"),\"\")","v":""},{"$f":"IFERROR(IF(GalimųKlientųDuomenys[[#This Row],[Prognozės \npabaiga]] <>\"\",IF(GalimųKlientųDuomenys[[#This Row],[Prognozės \npabaiga]] = \"Gruodžio\",GalimųKlientųDuomenys[Svertinė \nprognozė],0),\"\"),\"\")","v":""}]
[null,{"$f":"IFERROR(IF(AND(GalimųKlientųDuomenys[[#This Row],[Galimo kliento vardas]] <> \"\", ROW(PardavimoPrognozė[Galimo kliento vardas])<>PaskutinisĮrašas),GalimųKlientųDuomenys[Galimo kliento vardas], \"\"),\"\")","v":""},{"$f":"IFERROR(IF(GalimųKlientųDuomenys[[#This Row],[Prognozės \npabaiga]] <>\"\",IF(GalimųKlientųDuomenys[[#This Row],[Prognozės \npabaiga]]= \"Sausis\",GalimųKlientųDuomenys[Svertinė \nprognozė],0),\"\"),\"\")","v":""},{"$f":"IFERROR(IF(GalimųKlientųDuomenys[[#This Row],[Prognozės \npabaiga]] <>\"\",IF(GalimųKlientųDuomenys[[#This Row],[Prognozės \npabaiga]] = \"Vasaris\",GalimųKlientųDuomenys[Svertinė \nprognozė],0),\"\"),\"\")","v":""},{"$f":"IFERROR(IF(GalimųKlientųDuomenys[[#This Row],[Prognozės \npabaiga]] <>\"\",IF(GalimųKlientųDuomenys[[#This Row],[Prognozės \npabaiga]] = \"Kovas\",GalimųKlientųDuomenys[Svertinė \nprognozė],0),\"\"),\"\")","v":""},{"$f":"IFERROR(IF(GalimųKlientųDuomenys[[#This Row],[Prognozės \npabaiga]] <>\"\",IF(GalimųKlientųDuomenys[[#This Row],[Prognozės \npabaiga]] = \"Balandžio\",GalimųKlientųDuomenys[Svertinė \nprognozė],0),\"\"),\"\")","v":""},{"$f":"IFERROR(IF(GalimųKlientųDuomenys[[#This Row],[Prognozės \npabaiga]] <>\"\",IF(GalimųKlientųDuomenys[[#This Row],[Prognozės \npabaiga]] = \"Gegužės\",GalimųKlientųDuomenys[Svertinė \nprognozė],0),\"\"),\"\")","v":""},{"$f":"IFERROR(IF(GalimųKlientųDuomenys[[#This Row],[Prognozės \npabaiga]] <>\"\",IF(GalimųKlientųDuomenys[[#This Row],[Prognozės \npabaiga]] = \"Birželio\",GalimųKlientųDuomenys[Svertinė \nprognozė],0),\"\"),\"\")","v":""},{"$f":"IFERROR(IF(GalimųKlientųDuomenys[[#This Row],[Prognozės \npabaiga]] <>\"\",IF(GalimųKlientųDuomenys[[#This Row],[Prognozės \npabaiga]] = \"Liepos\",GalimųKlientųDuomenys[Svertinė \nprognozė],0),\"\"),\"\")","v":""},{"$f":"IFERROR(IF(GalimųKlientųDuomenys[[#This Row],[Prognozės \npabaiga]] <>\"\",IF(GalimųKlientųDuomenys[[#This Row],[Prognozės \npabaiga]] = \"Rugpjūčio\",GalimųKlientųDuomenys[Svertinė \nprognozė],0),\"\"),\"\")","v":""},{"$f":"IFERROR(IF(GalimųKlientųDuomenys[[#This Row],[Prognozės \npabaiga]] <>\"\",IF(GalimųKlientųDuomenys[[#This Row],[Prognozės \npabaiga]] = \"Rugsėjo\",GalimųKlientųDuomenys[Svertinė \nprognozė],0),\"\"),\"\")","v":""},{"$f":"IFERROR(IF(GalimųKlientųDuomenys[[#This Row],[Prognozės \npabaiga]] <>\"\",IF(GalimųKlientųDuomenys[[#This Row],[Prognozės \npabaiga]] = \"Spalio\",GalimųKlientųDuomenys[Svertinė \nprognozė],0),\"\"),\"\")","v":""},{"$f":"IFERROR(IF(GalimųKlientųDuomenys[[#This Row],[Prognozės \npabaiga]] <>\"\",IF(GalimųKlientųDuomenys[[#This Row],[Prognozės \npabaiga]] = \"Lapkričio\",GalimųKlientųDuomenys[Svertinė \nprognozė],0),\"\"),\"\")","v":""},{"$f":"IFERROR(IF(GalimųKlientųDuomenys[[#This Row],[Prognozės \npabaiga]] <>\"\",IF(GalimųKlientųDuomenys[[#This Row],[Prognozės \npabaiga]] = \"Gruodžio\",GalimųKlientųDuomenys[Svertinė \nprognozė],0),\"\"),\"\")","v":""}]
[null,{"$f":"IFERROR(IF(AND(GalimųKlientųDuomenys[[#This Row],[Galimo kliento vardas]] <> \"\", ROW(PardavimoPrognozė[Galimo kliento vardas])<>PaskutinisĮrašas),GalimųKlientųDuomenys[Galimo kliento vardas], \"\"),\"\")","v":""},{"$f":"IFERROR(IF(GalimųKlientųDuomenys[[#This Row],[Prognozės \npabaiga]] <>\"\",IF(GalimųKlientųDuomenys[[#This Row],[Prognozės \npabaiga]]= \"Sausis\",GalimųKlientųDuomenys[Svertinė \nprognozė],0),\"\"),\"\")","v":""},{"$f":"IFERROR(IF(GalimųKlientųDuomenys[[#This Row],[Prognozės \npabaiga]] <>\"\",IF(GalimųKlientųDuomenys[[#This Row],[Prognozės \npabaiga]] = \"Vasaris\",GalimųKlientųDuomenys[Svertinė \nprognozė],0),\"\"),\"\")","v":""},{"$f":"IFERROR(IF(GalimųKlientųDuomenys[[#This Row],[Prognozės \npabaiga]] <>\"\",IF(GalimųKlientųDuomenys[[#This Row],[Prognozės \npabaiga]] = \"Kovas\",GalimųKlientųDuomenys[Svertinė \nprognozė],0),\"\"),\"\")","v":""},{"$f":"IFERROR(IF(GalimųKlientųDuomenys[[#This Row],[Prognozės \npabaiga]] <>\"\",IF(GalimųKlientųDuomenys[[#This Row],[Prognozės \npabaiga]] = \"Balandžio\",GalimųKlientųDuomenys[Svertinė \nprognozė],0),\"\"),\"\")","v":""},{"$f":"IFERROR(IF(GalimųKlientųDuomenys[[#This Row],[Prognozės \npabaiga]] <>\"\",IF(GalimųKlientųDuomenys[[#This Row],[Prognozės \npabaiga]] = \"Gegužės\",GalimųKlientųDuomenys[Svertinė \nprognozė],0),\"\"),\"\")","v":""},{"$f":"IFERROR(IF(GalimųKlientųDuomenys[[#This Row],[Prognozės \npabaiga]] <>\"\",IF(GalimųKlientųDuomenys[[#This Row],[Prognozės \npabaiga]] = \"Birželio\",GalimųKlientųDuomenys[Svertinė \nprognozė],0),\"\"),\"\")","v":""},{"$f":"IFERROR(IF(GalimųKlientųDuomenys[[#This Row],[Prognozės \npabaiga]] <>\"\",IF(GalimųKlientųDuomenys[[#This Row],[Prognozės \npabaiga]] = \"Liepos\",GalimųKlientųDuomenys[Svertinė \nprognozė],0),\"\"),\"\")","v":""},{"$f":"IFERROR(IF(GalimųKlientųDuomenys[[#This Row],[Prognozės \npabaiga]] <>\"\",IF(GalimųKlientųDuomenys[[#This Row],[Prognozės \npabaiga]] = \"Rugpjūčio\",GalimųKlientųDuomenys[Svertinė \nprognozė],0),\"\"),\"\")","v":""},{"$f":"IFERROR(IF(GalimųKlientųDuomenys[[#This Row],[Prognozės \npabaiga]] <>\"\",IF(GalimųKlientųDuomenys[[#This Row],[Prognozės \npabaiga]] = \"Rugsėjo\",GalimųKlientųDuomenys[Svertinė \nprognozė],0),\"\"),\"\")","v":""},{"$f":"IFERROR(IF(GalimųKlientųDuomenys[[#This Row],[Prognozės \npabaiga]] <>\"\",IF(GalimųKlientųDuomenys[[#This Row],[Prognozės \npabaiga]] = \"Spalio\",GalimųKlientųDuomenys[Svertinė \nprognozė],0),\"\"),\"\")","v":""},{"$f":"IFERROR(IF(GalimųKlientųDuomenys[[#This Row],[Prognozės \npabaiga]] <>\"\",IF(GalimųKlientųDuomenys[[#This Row],[Prognozės \npabaiga]] = \"Lapkričio\",GalimųKlientųDuomenys[Svertinė \nprognozė],0),\"\"),\"\")","v":""},{"$f":"IFERROR(IF(GalimųKlientųDuomenys[[#This Row],[Prognozės \npabaiga]] <>\"\",IF(GalimųKlientųDuomenys[[#This Row],[Prognozės \npabaiga]] = \"Gruodžio\",GalimųKlientųDuomenys[Svertinė \nprognozė],0),\"\"),\"\")","v":""}]
[null,{"$f":"IFERROR(IF(AND(GalimųKlientųDuomenys[[#This Row],[Galimo kliento vardas]] <> \"\", ROW(PardavimoPrognozė[Galimo kliento vardas])<>PaskutinisĮrašas),GalimųKlientųDuomenys[Galimo kliento vardas], \"\"),\"\")","v":""},{"$f":"IFERROR(IF(GalimųKlientųDuomenys[[#This Row],[Prognozės \npabaiga]] <>\"\",IF(GalimųKlientųDuomenys[[#This Row],[Prognozės \npabaiga]]= \"Sausis\",GalimųKlientųDuomenys[Svertinė \nprognozė],0),\"\"),\"\")","v":""},{"$f":"IFERROR(IF(GalimųKlientųDuomenys[[#This Row],[Prognozės \npabaiga]] <>\"\",IF(GalimųKlientųDuomenys[[#This Row],[Prognozės \npabaiga]] = \"Vasaris\",GalimųKlientųDuomenys[Svertinė \nprognozė],0),\"\"),\"\")","v":""},{"$f":"IFERROR(IF(GalimųKlientųDuomenys[[#This Row],[Prognozės \npabaiga]] <>\"\",IF(GalimųKlientųDuomenys[[#This Row],[Prognozės \npabaiga]] = \"Kovas\",GalimųKlientųDuomenys[Svertinė \nprognozė],0),\"\"),\"\")","v":""},{"$f":"IFERROR(IF(GalimųKlientųDuomenys[[#This Row],[Prognozės \npabaiga]] <>\"\",IF(GalimųKlientųDuomenys[[#This Row],[Prognozės \npabaiga]] = \"Balandžio\",GalimųKlientųDuomenys[Svertinė \nprognozė],0),\"\"),\"\")","v":""},{"$f":"IFERROR(IF(GalimųKlientųDuomenys[[#This Row],[Prognozės \npabaiga]] <>\"\",IF(GalimųKlientųDuomenys[[#This Row],[Prognozės \npabaiga]] = \"Gegužės\",GalimųKlientųDuomenys[Svertinė \nprognozė],0),\"\"),\"\")","v":""},{"$f":"IFERROR(IF(GalimųKlientųDuomenys[[#This Row],[Prognozės \npabaiga]] <>\"\",IF(GalimųKlientųDuomenys[[#This Row],[Prognozės \npabaiga]] = \"Birželio\",GalimųKlientųDuomenys[Svertinė \nprognozė],0),\"\"),\"\")","v":""},{"$f":"IFERROR(IF(GalimųKlientųDuomenys[[#This Row],[Prognozės \npabaiga]] <>\"\",IF(GalimųKlientųDuomenys[[#This Row],[Prognozės \npabaiga]] = \"Liepos\",GalimųKlientųDuomenys[Svertinė \nprognozė],0),\"\"),\"\")","v":""},{"$f":"IFERROR(IF(GalimųKlientųDuomenys[[#This Row],[Prognozės \npabaiga]] <>\"\",IF(GalimųKlientųDuomenys[[#This Row],[Prognozės \npabaiga]] = \"Rugpjūčio\",GalimųKlientųDuomenys[Svertinė \nprognozė],0),\"\"),\"\")","v":""},{"$f":"IFERROR(IF(GalimųKlientųDuomenys[[#This Row],[Prognozės \npabaiga]] <>\"\",IF(GalimųKlientųDuomenys[[#This Row],[Prognozės \npabaiga]] = \"Rugsėjo\",GalimųKlientųDuomenys[Svertinė \nprognozė],0),\"\"),\"\")","v":""},{"$f":"IFERROR(IF(GalimųKlientųDuomenys[[#This Row],[Prognozės \npabaiga]] <>\"\",IF(GalimųKlientųDuomenys[[#This Row],[Prognozės \npabaiga]] = \"Spalio\",GalimųKlientųDuomenys[Svertinė \nprognozė],0),\"\"),\"\")","v":""},{"$f":"IFERROR(IF(GalimųKlientųDuomenys[[#This Row],[Prognozės \npabaiga]] <>\"\",IF(GalimųKlientųDuomenys[[#This Row],[Prognozės \npabaiga]] = \"Lapkričio\",GalimųKlientųDuomenys[Svertinė \nprognozė],0),\"\"),\"\")","v":""},{"$f":"IFERROR(IF(GalimųKlientųDuomenys[[#This Row],[Prognozės \npabaiga]] <>\"\",IF(GalimųKlientųDuomenys[[#This Row],[Prognozės \npabaiga]] = \"Gruodžio\",GalimųKlientųDuomenys[Svertinė \nprognozė],0),\"\"),\"\")","v":""}]
[null,{"$f":"IFERROR(IF(AND(GalimųKlientųDuomenys[[#This Row],[Galimo kliento vardas]] <> \"\", ROW(PardavimoPrognozė[Galimo kliento vardas])<>PaskutinisĮrašas),GalimųKlientųDuomenys[Galimo kliento vardas], \"\"),\"\")","v":""},{"$f":"IFERROR(IF(GalimųKlientųDuomenys[[#This Row],[Prognozės \npabaiga]] <>\"\",IF(GalimųKlientųDuomenys[[#This Row],[Prognozės \npabaiga]]= \"Sausis\",GalimųKlientųDuomenys[Svertinė \nprognozė],0),\"\"),\"\")","v":""},{"$f":"IFERROR(IF(GalimųKlientųDuomenys[[#This Row],[Prognozės \npabaiga]] <>\"\",IF(GalimųKlientųDuomenys[[#This Row],[Prognozės \npabaiga]] = \"Vasaris\",GalimųKlientųDuomenys[Svertinė \nprognozė],0),\"\"),\"\")","v":""},{"$f":"IFERROR(IF(GalimųKlientųDuomenys[[#This Row],[Prognozės \npabaiga]] <>\"\",IF(GalimųKlientųDuomenys[[#This Row],[Prognozės \npabaiga]] = \"Kovas\",GalimųKlientųDuomenys[Svertinė \nprognozė],0),\"\"),\"\")","v":""},{"$f":"IFERROR(IF(GalimųKlientųDuomenys[[#This Row],[Prognozės \npabaiga]] <>\"\",IF(GalimųKlientųDuomenys[[#This Row],[Prognozės \npabaiga]] = \"Balandžio\",GalimųKlientųDuomenys[Svertinė \nprognozė],0),\"\"),\"\")","v":""},{"$f":"IFERROR(IF(GalimųKlientųDuomenys[[#This Row],[Prognozės \npabaiga]] <>\"\",IF(GalimųKlientųDuomenys[[#This Row],[Prognozės \npabaiga]] = \"Gegužės\",GalimųKlientųDuomenys[Svertinė \nprognozė],0),\"\"),\"\")","v":""},{"$f":"IFERROR(IF(GalimųKlientųDuomenys[[#This Row],[Prognozės \npabaiga]] <>\"\",IF(GalimųKlientųDuomenys[[#This Row],[Prognozės \npabaiga]] = \"Birželio\",GalimųKlientųDuomenys[Svertinė \nprognozė],0),\"\"),\"\")","v":""},{"$f":"IFERROR(IF(GalimųKlientųDuomenys[[#This Row],[Prognozės \npabaiga]] <>\"\",IF(GalimųKlientųDuomenys[[#This Row],[Prognozės \npabaiga]] = \"Liepos\",GalimųKlientųDuomenys[Svertinė \nprognozė],0),\"\"),\"\")","v":""},{"$f":"IFERROR(IF(GalimųKlientųDuomenys[[#This Row],[Prognozės \npabaiga]] <>\"\",IF(GalimųKlientųDuomenys[[#This Row],[Prognozės \npabaiga]] = \"Rugpjūčio\",GalimųKlientųDuomenys[Svertinė \nprognozė],0),\"\"),\"\")","v":""},{"$f":"IFERROR(IF(GalimųKlientųDuomenys[[#This Row],[Prognozės \npabaiga]] <>\"\",IF(GalimųKlientųDuomenys[[#This Row],[Prognozės \npabaiga]] = \"Rugsėjo\",GalimųKlientųDuomenys[Svertinė \nprognozė],0),\"\"),\"\")","v":""},{"$f":"IFERROR(IF(GalimųKlientųDuomenys[[#This Row],[Prognozės \npabaiga]] <>\"\",IF(GalimųKlientųDuomenys[[#This Row],[Prognozės \npabaiga]] = \"Spalio\",GalimųKlientųDuomenys[Svertinė \nprognozė],0),\"\"),\"\")","v":""},{"$f":"IFERROR(IF(GalimųKlientųDuomenys[[#This Row],[Prognozės \npabaiga]] <>\"\",IF(GalimųKlientųDuomenys[[#This Row],[Prognozės \npabaiga]] = \"Lapkričio\",GalimųKlientųDuomenys[Svertinė \nprognozė],0),\"\"),\"\")","v":""},{"$f":"IFERROR(IF(GalimųKlientųDuomenys[[#This Row],[Prognozės \npabaiga]] <>\"\",IF(GalimųKlientųDuomenys[[#This Row],[Prognozės \npabaiga]] = \"Gruodžio\",GalimųKlientųDuomenys[Svertinė \nprognozė],0),\"\"),\"\")","v":""}]
[null,{"$f":"IFERROR(IF(AND(GalimųKlientųDuomenys[[#This Row],[Galimo kliento vardas]] <> \"\", ROW(PardavimoPrognozė[Galimo kliento vardas])<>PaskutinisĮrašas),GalimųKlientųDuomenys[Galimo kliento vardas], \"\"),\"\")","v":""},{"$f":"IFERROR(IF(GalimųKlientųDuomenys[[#This Row],[Prognozės \npabaiga]] <>\"\",IF(GalimųKlientųDuomenys[[#This Row],[Prognozės \npabaiga]]= \"Sausis\",GalimųKlientųDuomenys[Svertinė \nprognozė],0),\"\"),\"\")","v":""},{"$f":"IFERROR(IF(GalimųKlientųDuomenys[[#This Row],[Prognozės \npabaiga]] <>\"\",IF(GalimųKlientųDuomenys[[#This Row],[Prognozės \npabaiga]] = \"Vasaris\",GalimųKlientųDuomenys[Svertinė \nprognozė],0),\"\"),\"\")","v":""},{"$f":"IFERROR(IF(GalimųKlientųDuomenys[[#This Row],[Prognozės \npabaiga]] <>\"\",IF(GalimųKlientųDuomenys[[#This Row],[Prognozės \npabaiga]] = \"Kovas\",GalimųKlientųDuomenys[Svertinė \nprognozė],0),\"\"),\"\")","v":""},{"$f":"IFERROR(IF(GalimųKlientųDuomenys[[#This Row],[Prognozės \npabaiga]] <>\"\",IF(GalimųKlientųDuomenys[[#This Row],[Prognozės \npabaiga]] = \"Balandžio\",GalimųKlientųDuomenys[Svertinė \nprognozė],0),\"\"),\"\")","v":""},{"$f":"IFERROR(IF(GalimųKlientųDuomenys[[#This Row],[Prognozės \npabaiga]] <>\"\",IF(GalimųKlientųDuomenys[[#This Row],[Prognozės \npabaiga]] = \"Gegužės\",GalimųKlientųDuomenys[Svertinė \nprognozė],0),\"\"),\"\")","v":""},{"$f":"IFERROR(IF(GalimųKlientųDuomenys[[#This Row],[Prognozės \npabaiga]] <>\"\",IF(GalimųKlientųDuomenys[[#This Row],[Prognozės \npabaiga]] = \"Birželio\",GalimųKlientųDuomenys[Svertinė \nprognozė],0),\"\"),\"\")","v":""},{"$f":"IFERROR(IF(GalimųKlientųDuomenys[[#This Row],[Prognozės \npabaiga]] <>\"\",IF(GalimųKlientųDuomenys[[#This Row],[Prognozės \npabaiga]] = \"Liepos\",GalimųKlientųDuomenys[Svertinė \nprognozė],0),\"\"),\"\")","v":""},{"$f":"IFERROR(IF(GalimųKlientųDuomenys[[#This Row],[Prognozės \npabaiga]] <>\"\",IF(GalimųKlientųDuomenys[[#This Row],[Prognozės \npabaiga]] = \"Rugpjūčio\",GalimųKlientųDuomenys[Svertinė \nprognozė],0),\"\"),\"\")","v":""},{"$f":"IFERROR(IF(GalimųKlientųDuomenys[[#This Row],[Prognozės \npabaiga]] <>\"\",IF(GalimųKlientųDuomenys[[#This Row],[Prognozės \npabaiga]] = \"Rugsėjo\",GalimųKlientųDuomenys[Svertinė \nprognozė],0),\"\"),\"\")","v":""},{"$f":"IFERROR(IF(GalimųKlientųDuomenys[[#This Row],[Prognozės \npabaiga]] <>\"\",IF(GalimųKlientųDuomenys[[#This Row],[Prognozės \npabaiga]] = \"Spalio\",GalimųKlientųDuomenys[Svertinė \nprognozė],0),\"\"),\"\")","v":""},{"$f":"IFERROR(IF(GalimųKlientųDuomenys[[#This Row],[Prognozės \npabaiga]] <>\"\",IF(GalimųKlientųDuomenys[[#This Row],[Prognozės \npabaiga]] = \"Lapkričio\",GalimųKlientųDuomenys[Svertinė \nprognozė],0),\"\"),\"\")","v":""},{"$f":"IFERROR(IF(GalimųKlientųDuomenys[[#This Row],[Prognozės \npabaiga]] <>\"\",IF(GalimųKlientųDuomenys[[#This Row],[Prognozės \npabaiga]] = \"Gruodžio\",GalimųKlientųDuomenys[Svertinė \nprognozė],0),\"\"),\"\")","v":""}]
[null,{"$f":"IFERROR(IF(AND(GalimųKlientųDuomenys[[#This Row],[Galimo kliento vardas]] <> \"\", ROW(PardavimoPrognozė[Galimo kliento vardas])<>PaskutinisĮrašas),GalimųKlientųDuomenys[Galimo kliento vardas], \"\"),\"\")","v":""},{"$f":"IFERROR(IF(GalimųKlientųDuomenys[[#This Row],[Prognozės \npabaiga]] <>\"\",IF(GalimųKlientųDuomenys[[#This Row],[Prognozės \npabaiga]]= \"Sausis\",GalimųKlientųDuomenys[Svertinė \nprognozė],0),\"\"),\"\")","v":""},{"$f":"IFERROR(IF(GalimųKlientųDuomenys[[#This Row],[Prognozės \npabaiga]] <>\"\",IF(GalimųKlientųDuomenys[[#This Row],[Prognozės \npabaiga]] = \"Vasaris\",GalimųKlientųDuomenys[Svertinė \nprognozė],0),\"\"),\"\")","v":""},{"$f":"IFERROR(IF(GalimųKlientųDuomenys[[#This Row],[Prognozės \npabaiga]] <>\"\",IF(GalimųKlientųDuomenys[[#This Row],[Prognozės \npabaiga]] = \"Kovas\",GalimųKlientųDuomenys[Svertinė \nprognozė],0),\"\"),\"\")","v":""},{"$f":"IFERROR(IF(GalimųKlientųDuomenys[[#This Row],[Prognozės \npabaiga]] <>\"\",IF(GalimųKlientųDuomenys[[#This Row],[Prognozės \npabaiga]] = \"Balandžio\",GalimųKlientųDuomenys[Svertinė \nprognozė],0),\"\"),\"\")","v":""},{"$f":"IFERROR(IF(GalimųKlientųDuomenys[[#This Row],[Prognozės \npabaiga]] <>\"\",IF(GalimųKlientųDuomenys[[#This Row],[Prognozės \npabaiga]] = \"Gegužės\",GalimųKlientųDuomenys[Svertinė \nprognozė],0),\"\"),\"\")","v":""},{"$f":"IFERROR(IF(GalimųKlientųDuomenys[[#This Row],[Prognozės \npabaiga]] <>\"\",IF(GalimųKlientųDuomenys[[#This Row],[Prognozės \npabaiga]] = \"Birželio\",GalimųKlientųDuomenys[Svertinė \nprognozė],0),\"\"),\"\")","v":""},{"$f":"IFERROR(IF(GalimųKlientųDuomenys[[#This Row],[Prognozės \npabaiga]] <>\"\",IF(GalimųKlientųDuomenys[[#This Row],[Prognozės \npabaiga]] = \"Liepos\",GalimųKlientųDuomenys[Svertinė \nprognozė],0),\"\"),\"\")","v":""},{"$f":"IFERROR(IF(GalimųKlientųDuomenys[[#This Row],[Prognozės \npabaiga]] <>\"\",IF(GalimųKlientųDuomenys[[#This Row],[Prognozės \npabaiga]] = \"Rugpjūčio\",GalimųKlientųDuomenys[Svertinė \nprognozė],0),\"\"),\"\")","v":""},{"$f":"IFERROR(IF(GalimųKlientųDuomenys[[#This Row],[Prognozės \npabaiga]] <>\"\",IF(GalimųKlientųDuomenys[[#This Row],[Prognozės \npabaiga]] = \"Rugsėjo\",GalimųKlientųDuomenys[Svertinė \nprognozė],0),\"\"),\"\")","v":""},{"$f":"IFERROR(IF(GalimųKlientųDuomenys[[#This Row],[Prognozės \npabaiga]] <>\"\",IF(GalimųKlientųDuomenys[[#This Row],[Prognozės \npabaiga]] = \"Spalio\",GalimųKlientųDuomenys[Svertinė \nprognozė],0),\"\"),\"\")","v":""},{"$f":"IFERROR(IF(GalimųKlientųDuomenys[[#This Row],[Prognozės \npabaiga]] <>\"\",IF(GalimųKlientųDuomenys[[#This Row],[Prognozės \npabaiga]] = \"Lapkričio\",GalimųKlientųDuomenys[Svertinė \nprognozė],0),\"\"),\"\")","v":""},{"$f":"IFERROR(IF(GalimųKlientųDuomenys[[#This Row],[Prognozės \npabaiga]] <>\"\",IF(GalimųKlientųDuomenys[[#This Row],[Prognozės \npabaiga]] = \"Gruodžio\",GalimųKlientųDuomenys[Svertinė \nprognozė],0),\"\"),\"\")","v":""}]
[null,{"$f":"IFERROR(IF(AND(GalimųKlientųDuomenys[[#This Row],[Galimo kliento vardas]] <> \"\", ROW(PardavimoPrognozė[Galimo kliento vardas])<>PaskutinisĮrašas),GalimųKlientųDuomenys[Galimo kliento vardas], \"\"),\"\")","v":""},{"$f":"IFERROR(IF(GalimųKlientųDuomenys[[#This Row],[Prognozės \npabaiga]] <>\"\",IF(GalimųKlientųDuomenys[[#This Row],[Prognozės \npabaiga]]= \"Sausis\",GalimųKlientųDuomenys[Svertinė \nprognozė],0),\"\"),\"\")","v":""},{"$f":"IFERROR(IF(GalimųKlientųDuomenys[[#This Row],[Prognozės \npabaiga]] <>\"\",IF(GalimųKlientųDuomenys[[#This Row],[Prognozės \npabaiga]] = \"Vasaris\",GalimųKlientųDuomenys[Svertinė \nprognozė],0),\"\"),\"\")","v":""},{"$f":"IFERROR(IF(GalimųKlientųDuomenys[[#This Row],[Prognozės \npabaiga]] <>\"\",IF(GalimųKlientųDuomenys[[#This Row],[Prognozės \npabaiga]] = \"Kovas\",GalimųKlientųDuomenys[Svertinė \nprognozė],0),\"\"),\"\")","v":""},{"$f":"IFERROR(IF(GalimųKlientųDuomenys[[#This Row],[Prognozės \npabaiga]] <>\"\",IF(GalimųKlientųDuomenys[[#This Row],[Prognozės \npabaiga]] = \"Balandžio\",GalimųKlientųDuomenys[Svertinė \nprognozė],0),\"\"),\"\")","v":""},{"$f":"IFERROR(IF(GalimųKlientųDuomenys[[#This Row],[Prognozės \npabaiga]] <>\"\",IF(GalimųKlientųDuomenys[[#This Row],[Prognozės \npabaiga]] = \"Gegužės\",GalimųKlientųDuomenys[Svertinė \nprognozė],0),\"\"),\"\")","v":""},{"$f":"IFERROR(IF(GalimųKlientųDuomenys[[#This Row],[Prognozės \npabaiga]] <>\"\",IF(GalimųKlientųDuomenys[[#This Row],[Prognozės \npabaiga]] = \"Birželio\",GalimųKlientųDuomenys[Svertinė \nprognozė],0),\"\"),\"\")","v":""},{"$f":"IFERROR(IF(GalimųKlientųDuomenys[[#This Row],[Prognozės \npabaiga]] <>\"\",IF(GalimųKlientųDuomenys[[#This Row],[Prognozės \npabaiga]] = \"Liepos\",GalimųKlientųDuomenys[Svertinė \nprognozė],0),\"\"),\"\")","v":""},{"$f":"IFERROR(IF(GalimųKlientųDuomenys[[#This Row],[Prognozės \npabaiga]] <>\"\",IF(GalimųKlientųDuomenys[[#This Row],[Prognozės \npabaiga]] = \"Rugpjūčio\",GalimųKlientųDuomenys[Svertinė \nprognozė],0),\"\"),\"\")","v":""},{"$f":"IFERROR(IF(GalimųKlientųDuomenys[[#This Row],[Prognozės \npabaiga]] <>\"\",IF(GalimųKlientųDuomenys[[#This Row],[Prognozės \npabaiga]] = \"Rugsėjo\",GalimųKlientųDuomenys[Svertinė \nprognozė],0),\"\"),\"\")","v":""},{"$f":"IFERROR(IF(GalimųKlientųDuomenys[[#This Row],[Prognozės \npabaiga]] <>\"\",IF(GalimųKlientųDuomenys[[#This Row],[Prognozės \npabaiga]] = \"Spalio\",GalimųKlientųDuomenys[Svertinė \nprognozė],0),\"\"),\"\")","v":""},{"$f":"IFERROR(IF(GalimųKlientųDuomenys[[#This Row],[Prognozės \npabaiga]] <>\"\",IF(GalimųKlientųDuomenys[[#This Row],[Prognozės \npabaiga]] = \"Lapkričio\",GalimųKlientųDuomenys[Svertinė \nprognozė],0),\"\"),\"\")","v":""},{"$f":"IFERROR(IF(GalimųKlientųDuomenys[[#This Row],[Prognozės \npabaiga]] <>\"\",IF(GalimųKlientųDuomenys[[#This Row],[Prognozės \npabaiga]] = \"Gruodžio\",GalimųKlientųDuomenys[Svertinė \nprognozė],0),\"\"),\"\")","v":""}]
[null,"Suma",{"$f":"SUBTOTAL(109,PardavimoPrognozė[Sausio \nprognozė])","v":{"v":270000,"d":"270,000 EUR"}},{"$f":"SUBTOTAL(109,PardavimoPrognozė[Vasario \nprognozė])","v":{"v":20000,"d":"20,000 EUR"}},{"$f":"SUBTOTAL(109,PardavimoPrognozė[Kovo \nprognozė])","v":{"v":20000,"d":"20,000 EUR"}},{"$f":"SUBTOTAL(109,PardavimoPrognozė[Balandžio \nprognozė])","v":{"v":0,"d":"0 EUR"}},{"$f":"SUBTOTAL(109,PardavimoPrognozė[Gegužės \nprognozė])","v":{"v":0,"d":"0 EUR"}},{"$f":"SUBTOTAL(109,PardavimoPrognozė[Birželio \nprognozė])","v":{"v":0,"d":"0 EUR"}},{"$f":"SUBTOTAL(109,PardavimoPrognozė[Liepos \nprognozė])","v":{"v":0,"d":"0 EUR"}},{"$f":"SUBTOTAL(109,PardavimoPrognozė[Rugpjūčio \nprognozė])","v":{"v":0,"d":"0 EUR"}},{"$f":"SUBTOTAL(109,PardavimoPrognozė[Rugsėjo \nprognozė])","v":{"v":0,"d":"0 EUR"}},{"$f":"SUBTOTAL(109,PardavimoPrognozė[Spalio \nprognozė])","v":{"v":0,"d":"0 EUR"}},{"$f":"SUBTOTAL(109,PardavimoPrognozė[Lapkričio \nprognozė])","v":{"v":0,"d":"0 EUR"}},{"$f":"SUBTOTAL(109,PardavimoPrognozė[Gruodžio \nprognozė])","v":{"v":0,"d":"0 EUR"}}]
[null,"Bendra suma",{"$f":"C20","v":{"v":270000,"d":"270,000 EUR"}},{"$f":"C21+D20","v":{"v":290000,"d":"290,000 EUR"}},{"$f":"D21+E20","v":{"v":310000,"d":"310,000 EUR"}},{"$f":"E21+F20","v":{"v":310000,"d":"310,000 EUR"}},{"$f":"F21+G20","v":{"v":310000,"d":"310,000 EUR"}},{"$f":"G21+H20","v":{"v":310000,"d":"310,000 EUR"}},{"$f":"H21+I20","v":{"v":310000,"d":"310,000 EUR"}},{"$f":"I21+J20","v":{"v":310000,"d":"310,000 EUR"}},{"$f":"J21+K20","v":{"v":310000,"d":"310,000 EUR"}},{"$f":"K21+L20","v":{"v":310000,"d":"310,000 EUR"}},{"$f":"L21+M20","v":{"v":310000,"d":"310,000 EUR"}},{"$f":"M21+N20","v":{"v":310000,"d":"310,000 EUR"}}]

{"sheet":"Mėnesio svertinė prognozė","index":2,"n_rows":3,"n_cols":2,"rows_kept":3}
[null,{"$f":"Įmonės_pavadinimas","v":"Įmonės pavadinimas"}]
[null,"Mėnesio svertinė prognozė"]
[null," "]